bitfinex/quotes_SOLUSD_20240614
["timestamp","ask_amount","ask_price","bid_price","bid_amount"]
[1718388903347,23.631,140.92,140.88,0.17]
[1718388903642,9.95646733,140.93,140.89,13.1304]
[1718388903842,2.6256,140.92,140.89,2.626]
[1718388904048,7.33106733,140.93,140.88,3.1363]
[1718388904251,7.33106733,140.93,140.88,26.7727]
[1718388904252,30.96056733,140.93,140.88,26.7727]
[1718388904563,30.49,140.94,140.9,23.6333]
[1718388904564,2.6252,140.94,140.9,23.6333]
[1718388904769,26.2509,140.95,140.91,2.6257]
[1718388904961,18.17693225,140.96,140.92,2.6255]
[1718388905165,18.17693225,140.96,140.91,18.3794]
[1718388905166,7.8752,140.95,140.91,7.8771]
[1718388905460,2.6251,140.95,140.91,26.2572]
[1718388905657,7.8751,140.95,140.91,5.2513]
[1718388905851,7.34809996,140.96,140.9,8.3875]
[1718388906056,7.34809996,140.96,140.87,14.4834]
[1718388906057,107.34809996,140.96,140.87,14.4834]
[1718388906258,107.34809996,140.96,140.88,0.17]
[1718388906259,2.6259,140.91,140.88,0.17]
[1718388906464,18.3798,140.92,140.88,2.9663]
[1718388906465,26.2569,140.92,140.88,2.9663]
[1718388906670,2.6258,140.91,140.88,0.17]
[1718388906972,2.6257,140.92,140.89,2.6261]
[1718388907155,2.6255,140.93,140.84,6.6603]
[1718388907360,2.6254,140.93,140.9,2.6259]
[1718388907559,7.34809996,140.96,140.94,13.1257]
[1718388907869,5.2483,141.0,140.95,10.4995]
[1718388908056,54.1042,141.02,140.97,23.6216]
[1718388908256,56.728,141.02,140.98,2.6244]
[1718388908462,2.95723334,141.01,140.97,23.6216]
[1718388908657,0.33333334,141.01,140.99,2.6242]
[1718388908858,0.33333334,141.01,140.98,23.9597]
[1718388909060,0.33333334,141.01,141.0,15.9146]
[1718388909268,0.33333334,141.01,141.0,26.921]
[1718388910782,0.33333334,141.01,141.0,0.51]
[1718388911081,0.33333334,141.01,141.0,26.921]
[1718388911253,0.33333334,141.01,141.0,42.5551]
[1718388912286,24.4238025,141.1,141.05,26.2308]
[1718388912455,2.6227,141.08,141.06,0.17]
[1718388912651,13.113,141.08,141.05,0.34]
[1718388912964,26.2264,141.08,141.05,0.34]
[1718388913160,7.8676,141.09,141.05,8.2093]
[1718388913477,7.8676,141.09,140.96,15.4906]
[1718388913478,101.63836866,141.08,140.96,15.4906]
[1718388913658,5.249,140.98,140.94,2.6251]
[1718388913861,5.249,140.98,140.94,15.7512]
[1718388913862,2.6245,140.98,140.94,15.7512]
[1718388914179,13.1208,141.0,140.96,2.6248]
[1718388914474,7.872,141.01,140.97,7.8739]
[1718388914775,2.6243,140.99,140.95,7.8748]
[1718388914976,2.6248,140.97,140.93,2.6253]
[1718388915181,24.6968,141.01,140.91,6.1157]
[1718388915356,13.1188,141.02,140.98,2.6243]
[1718388915676,6.3917,141.04,140.91,27.4857]
[1718388915876,8.03006866,141.08,140.91,27.4857]
[1718388916095,2.6235,141.03,140.99,13.1208]
[1718388916385,1.63836866,141.07,141.03,7.8706]
[1718388916687,1.63836866,141.07,141.04,2.6232]
[1718388917018,1.63836866,141.07,141.06,26.3996]
[1718388917280,1.63836866,141.07,141.06,26.9096]
[1718388917855,1.63836866,141.07,141.06,0.68]
[1718388918052,1.63836866,141.07,141.06,26.9096]
[1718388918783,0.8236025,141.1,141.09,26.3942]
[1718388918985,0.8236025,141.1,141.09,26.9042]
[1718388920686,2.6206,141.19,141.15,2.6212]
[1718388921187,15.21069192,141.2,141.15,5.2425]
[1718388921480,7.8615,141.2,141.15,26.2127]
[1718388921667,7.8615,141.2,141.16,0.17]
[1718388921985,7.36442243,141.22,141.14,0.34]
[1718388922184,200.0,141.21,141.1,5.2442]
[1718388922481,7.8629,141.17,141.12,26.2181]
[1718388922687,23.5885,141.17,141.13,0.17]
[1718388922861,2.6211,141.16,141.13,0.17]
[1718388923177,7.8633,141.16,141.13,0.17]
[1718388923373,15.2527,141.18,141.08,2.6225]
[1718388923575,100.34,141.17,141.06,5.2458]
[1718388923788,100.0,141.17,141.08,2.6224]
[1718388923991,0.17,141.16,141.02,15.8788]
[1718388924169,0.17,141.14,141.05,2.6231]
[1718388924509,0.17,141.14,141.03,14.315]
[1718388924677,5.2446,141.1,141.05,13.1156]
[1718388924866,7.8669,141.1,141.06,2.6229]
[1718388925066,26.2215,141.11,141.06,7.8688]
[1718388925290,2.6226,141.08,141.04,2.6233]
[1718388925497,15.7351,141.09,141.04,15.7398]
[1718388925664,7.8684,141.07,141.03,6.4445]
[1718388925988,7.8684,141.07,141.03,9.0679]
[1718388925989,5.2456,141.07,141.03,9.0679]
[1718388926192,7.8697,141.05,141.0,6.0324]
[1718388926395,5.2471,141.03,140.98,29.6353]
[1718388926580,100.0,141.09,140.98,16.5132]
[1718388926777,2.6241,141.0,140.96,14.423]
[1718388926977,7.8719,141.01,140.96,14.423]
[1718388926978,20.992,141.01,140.96,7.8743]
[1718388927185,100.0,141.05,140.94,16.0792]
[1718388927186,10.4932,141.05,140.94,16.0792]
[1718388927387,5.2467,141.04,141.0,2.624]
[1718388927581,7.8699,141.05,141.0,23.6166]
[1718388927776,7.8699,141.05,140.94,16.0792]
[1718388927777,2.6235,141.03,140.99,7.8726]
[1718388927982,2.6235,141.03,140.99,2.6241]
[1718388928377,2.6238,141.02,140.98,7.8731]
[1718388928684,100.0,141.07,140.94,16.0792]
[1718388928685,5.2483,141.0,140.95,15.7499]
[1718388928894,106.3917,141.05,140.95,15.7499]
[1718388928895,106.3917,141.05,140.95,5.25]
[1718388929095,106.3917,141.05,140.94,16.0792]
[1718388929271,7.873,140.99,140.94,39.7059]
[1718388929475,7.8714,141.02,140.97,23.6215]
[1718388929689,7.8714,141.02,140.94,16.0792]
[1718388929690,2.6242,141.0,140.96,2.6246]
[1718388929888,2.6243,140.99,140.95,15.7495]
[1718388930090,2.6243,140.99,140.95,7.8747]
[1718388930294,26.2412,141.0,140.95,15.7498]
[1718388930801,32.13447935,141.1,140.95,0.17]
[1718388930802,6.181,141.09,140.95,0.17]
[1718388931000,200.0,141.05,140.95,0.34]
[1718388931302,2.6245,140.98,140.95,0.17]
[1718388931480,100.0,141.03,140.95,0.17]
[1718388931681,5.2483,141.0,140.95,13.1249]
[1718388931881,7.8716,141.02,140.98,26.2437]
[1718388931882,2.6237,141.02,140.98,26.2437]
[1718388932187,106.181,141.09,141.01,7.8715]
[1718388932188,2.6232,141.05,141.01,7.8715]
[1718388932399,2.6232,141.05,141.01,2.6237]
[1718388932599,2.6236,141.03,140.99,0.34]
[1718388932786,2.6236,141.03,140.99,2.9641]
[1718388932787,7.8707,141.03,140.99,2.9641]
[1718388933180,7.35565658,141.05,140.99,0.34]
[1718388933398,7.35565658,141.05,141.0,0.34]
[1718388933574,6.181,141.09,141.01,26.4084]
[1718388933575,26.2301,141.06,141.01,26.4084]
[1718388933772,2.6237,141.02,141.01,0.17]
[1718388933975,2.6237,141.02,140.99,0.17]
[1718388933976,7.8712,141.02,140.99,0.17]
[1718388934197,15.7399,141.05,141.0,5.4182]
[1718388934387,2.6233,141.05,141.01,15.7434]
[1718388934700,2.6232,141.05,141.02,0.17]
[1718388934911,7.8695,141.05,141.02,0.17]
[1718388935112,23.6074,141.06,141.02,0.17]
[1718388935279,7.8691,141.06,141.02,2.7936]
[1718388935479,7.35865401,141.07,141.02,0.17]
[1718388935779,2.6228,141.07,141.03,8.0403]
[1718388936097,2.6228,141.07,141.03,15.9109]
[1718388936301,13.1134,141.08,141.03,26.4051]
[1718388936499,2.6228,141.07,141.03,8.0403]
[1718388936701,26.2267,141.08,141.03,15.9108]
[1718388936903,2.6228,141.07,141.03,26.405]
[1718388937086,7.36468373,141.09,141.04,8.0397]
[1718388937393,2.6225,141.09,141.05,2.9631]
[1718388937589,15.7348,141.09,141.06,0.17]
[1718388937786,2.623,141.06,141.04,0.17]
[1718388938089,5.2451,141.09,141.04,5.4165]
[1718388938295,7.8684,141.07,141.05,0.34]
[1718388938587,7.8684,141.07,141.04,0.17]
[1718388938904,2.6228,141.07,141.04,0.17]
[1718388939203,0.17,141.1,141.0,6.3035]
[1718388939387,5.2465,141.05,141.0,19.4238]
[1718388939697,2.6236,141.03,141.0,6.3035]
[1718388940001,10.4936,141.04,141.0,6.3035]
[1718388940002,23.6104,141.04,141.0,6.3035]
[1718388940179,26.2339,141.04,141.0,8.9276]
[1718388940499,7.8708,141.03,141.0,6.3035]
[1718388941000,7.8713,141.02,141.0,6.3035]
[1718388941295,26.2366,141.03,140.99,2.6242]
[1718388941500,2.6238,141.02,140.98,7.8733]
[1718388941691,2.6239,141.01,140.97,41.8074]
[1718388941891,15.7425,141.02,140.98,2.6244]
[1718388942093,7.8713,141.02,140.98,2.6244]
[1718388942400,5.2489,140.99,140.94,5.2503]
[1718388942602,13.1225,140.98,140.93,27.3655]
[1718388942905,6.5617,141.05,140.83,367.5]
[1718388942906,5.2502,140.95,140.91,2.6257]
[1718388943204,135.5,141.02,140.89,21.7283]
[1718388943205,18.3717,140.98,140.89,21.7283]
[1718388943506,7.8741,140.97,140.93,2.6253]
[1718388943704,100.0,140.99,140.89,21.7283]
[1718388943900,100.0,140.99,140.89,45.3628]
[1718388943901,15.7514,140.94,140.89,45.3628]
[1718388944198,7.8763,140.93,140.89,24.3544]
[1718388944397,100.17,140.98,140.89,2.6261]
[1718388944613,7.8758,140.94,140.89,18.3824]
[1718388944904,135.5,141.0,140.85,6.1961]
[1718388944905,2.6248,140.96,140.92,7.8764]
[1718388945123,23.6225,140.97,140.93,7.8761]
[1718388945124,2.6247,140.97,140.93,7.8761]
[1718388945282,35.5,141.0,140.94,2.6251]
[1718388945283,18.3707,140.99,140.94,2.6251]
[1718388945478,2.6248,140.96,140.92,2.6255]
[1718388945705,26.2474,140.97,140.92,15.7533]
[1718388945877,20.9978,140.97,140.92,15.7532]
[1718388946084,0.17,141.03,140.94,7.8752]
[1718388946281,7.8729,140.99,140.95,2.625]
[1718388946500,2.6249,140.96,140.93,0.51]
[1718388946719,2.625,140.95,140.91,8.0471]
[1718388946887,7.8747,140.96,140.92,3.1355]
[1718388947082,2.625,140.95,140.92,0.51]
[1718388947787,26.2489,140.96,140.92,3.1355]
[1718388948002,26.2489,140.96,140.85,27.5661]
[1718388948003,23.6258,140.95,140.9,5.2517]
[1718388948195,2.6253,140.94,140.91,0.51]
[1718388948595,7.8754,140.95,140.91,3.1357]
[1718388948805,2.6252,140.94,140.91,0.51]
[1718388949108,2.6254,140.93,140.89,7.8782]
[1718388949319,7.36678667,140.98,140.85,6.1961]
[1718388949530,7.36678667,140.98,140.75,2.05364821]
[1718388949531,5.2542,140.84,140.79,15.7677]
[1718388949819,0.17,140.9,140.78,15.4836]
[1718388949820,18.386,140.87,140.78,15.4836]
[1718388949988,2.6269,140.85,140.81,7.8827]
[1718388950187,10.5044,140.9,140.78,15.4836]
[1718388950483,5.2525,140.89,140.84,5.2541]
[1718388950684,5.2525,140.89,140.84,7.881]
[1718388950685,18.3838,140.89,140.84,7.881]
[1718388950888,2.6266,140.87,140.83,2.6271]
[1718388951101,2.6266,140.87,140.83,7.8816]
[1718388951613,2.6266,140.87,140.76,26.2851]
[1718388951614,7.8832,140.81,140.76,26.2851]
[1718388951914,26.2756,140.82,140.77,15.77]
[1718388952211,26.2767,140.81,140.76,15.771]
[1718388952386,26.2755,140.82,140.77,7.885]
[1718388952595,2.6279,140.8,140.75,13.9674025]
[1718388952802,100.17,140.86,140.75,13.9674025]
[1718388952803,2.6276,140.81,140.77,2.6283]
[1718388953124,7.8827,140.82,140.78,2.6281]
[1718388953300,15.7652,140.82,140.77,7.8847]
[1718388953491,21.0285,140.76,140.75,0.8236025]
[1718388953698,26.2856,140.76,140.75,0.8236025]
[1718388953909,106.2322,140.8,140.6,7.77655386]
[1718388953910,2.6291,140.73,140.68,21.0398]
[1718388954132,106.2322,140.8,140.6,6.5452]
[1718388954422,106.2322,140.8,140.63,2.6309]
[1718388954423,5.2602,140.68,140.63,2.6309]
[1718388954594,35.5,140.74,140.6,6.5452]
[1718388954786,2.6298,140.7,140.66,2.6304]
[1718388954988,10.5186,140.71,140.66,5.2608]
[1718388955213,2.6296,140.71,140.65,7.8916]
[1718388955425,7.8874,140.73,140.6,6.5452]
[1718388955739,135.69,140.76,140.6,6.5452]
[1718388956021,135.69,140.76,140.66,7.8911]
[1718388956022,5.2592,140.71,140.66,7.8911]
[1718388956225,7.8888,140.71,140.66,15.7824]
[1718388956521,2.6293,140.72,140.68,2.63]
[1718388956718,15.7759,140.72,140.67,7.8906]
[1718388956891,15.7759,140.72,140.66,2.6303]
[1718388956892,7.8887,140.71,140.66,2.6303]
[1718388957092,2.6293,140.72,140.67,15.7814]
[1718388957287,2.6295,140.71,140.67,7.8905]
[1718388957519,2.6295,140.71,140.67,2.6301]
[1718388957818,15.7771,140.71,140.66,7.8909]
[1718388957997,2.6295,140.71,140.67,2.6302]
[1718388959515,2.6295,140.71,140.67,7.8907]
[1718388959698,2.6295,140.71,140.67,2.6302]
[1718388959900,2.6299,140.69,140.65,2.6304]
[1718388960128,23.6663,140.71,140.66,2.6304]
[1718388960292,26.294,140.72,140.67,15.7814]
[1718388960495,15.7771,140.71,140.66,15.7819]
[1718388960810,26.2952,140.71,140.67,2.6302]
[1718388961001,7.8886,140.71,140.67,0.17]
[1718388961202,7.8901,140.68,140.63,23.6787]
[1718388961523,7.8901,140.68,140.64,2.6306]
[1718388961524,2.6301,140.68,140.64,2.6306]
[1718388961729,7.8902,140.68,140.64,2.6307]
[1718388962214,13.1487,140.7,140.65,2.6305]
[1718388962416,23.6696,140.69,140.65,2.6306]
[1718388962723,15.7794,140.69,140.66,0.17]
[1718388962943,7.8897,140.69,140.66,0.17]
[1718388963102,2.6306,140.65,140.61,3.4548025]
[1718388963303,2.6306,140.65,140.61,8.7175025]
[1718388963507,7.892,140.65,140.61,3.4548025]
[1718388963809,7.8898,140.69,140.64,13.1539]
[1718388964035,2.6299,140.69,140.65,2.6305]
[1718388964209,2.6297,140.7,140.66,2.6303]
[1718388964415,2.6299,140.69,140.65,7.8915]
[1718388964616,26.2972,140.7,140.66,0.17]
[1718388964928,2.6301,140.68,140.64,26.6473]
[1718388965102,26.299,140.69,140.65,3.1406]
[1718388965797,7.8898,140.69,140.65,3.1406]
[1718388966203,26.2978,140.7,140.65,16.2936]
[1718388966504,23.6693,140.69,140.65,0.51]
[1718388966705,2.6301,140.68,140.65,0.51]
[1718388967012,2.63,140.69,140.65,8.4017]
[1718388967403,2.6301,140.68,140.65,0.51]
[1718388967613,7.8908,140.67,140.63,2.6309]
[1718388967814,2.6308,140.65,140.61,8.7175025]
[1718388968138,5.2608,140.67,140.62,18.4182]
[1718388968302,26.303,140.67,140.63,2.631]
[1718388968709,26.3052,140.66,140.62,2.6311]
[1718388968924,7.8915,140.66,140.62,2.6311]
[1718388969113,2.6307,140.65,140.61,8.7173025]
[1718388969316,2.6307,140.65,140.61,16.6114025]
[1718388969523,7.8919,140.65,140.61,3.4548025]
[1718388969831,2.6306,140.65,140.61,16.6115025]
[1718388970627,15.7839,140.65,140.61,3.4549025]
[1718388970839,7.3603952,140.69,140.61,0.8236025]
[1718388971018,2.6309,140.64,140.61,0.8236025]
[1718388971212,7.3603952,140.69,140.62,0.17]
[1718388971213,10.5213,140.67,140.62,0.17]
[1718388971530,2.6301,140.68,140.64,7.8921]
[1718388971730,2.6301,140.68,140.63,26.3091]
[1718388971731,2.6302,140.67,140.63,26.3091]
[1718388971910,7.8907,140.67,140.63,7.8927]
[1718388972234,18.4109,140.68,140.62,19.0975]
[1718388972235,7.3603952,140.69,140.62,0.68]
[1718388972435,2.6297,140.7,140.66,7.8911]
[1718388972772,2.6299,140.69,140.65,18.9237]
[1718388972915,2.6298,140.7,140.66,15.9523]
[1718388973109,7.38080278,140.72,140.68,23.6698]
[1718388973308,35.69,140.77,140.68,6.2009]
[1718388973523,15.9523,140.78,140.71,7.8883]
[1718388973524,2.6288,140.75,140.71,7.8883]
[1718388973736,25.7738968,140.77,140.72,0.34]
[1718388973925,7.886,140.76,140.72,2.9693]
[1718388974244,2.6283,140.78,140.74,2.6288]
[1718388974409,2.6282,140.78,140.75,0.68]
[1718388974608,2.6281,140.79,140.75,3.3087]
[1718388974828,7.8841,140.79,140.75,3.3087]
[1718388975426,26.2804,140.79,140.75,0.68]
[1718388975633,2.6285,140.76,140.72,2.6292]
[1718388975835,2.6288,140.75,140.73,0.51]
[1718388976014,2.6288,140.75,140.72,0.17]
[1718388976015,2.6294,140.72,140.67,23.0182]
[1718388976214,2.6296,140.71,140.67,17.7579]
[1718388976444,15.7762,140.72,140.67,41.4298]
[1718388976623,7.8886,140.71,140.67,17.7579]
[1718388976951,2.6303,140.67,140.63,23.939]
[1718388977243,22.8423,140.76,140.67,18.4116]
[1718388977423,7.8892,140.7,140.65,23.6752]
[1718388977738,2.6298,140.7,140.66,7.8911]
[1718388977936,22.8423,140.76,140.69,2.6298]
[1718388977937,2.6293,140.73,140.69,2.6298]
[1718388978113,2.6296,140.71,140.67,2.6301]
[1718388978314,7.8886,140.71,140.67,2.6301]
[1718388978529,2.6297,140.7,140.66,16.122]
[1718388978832,2.6299,140.69,140.65,2.6305]
[1718388979039,100.0,140.73,140.63,21.3081]
[1718388979336,100.0,140.71,140.63,21.3081]
[1718388979540,7.8919,140.65,140.61,3.4549025]
[1718388979733,0.68,140.72,140.61,0.8236025]
[1718388979934,0.17,140.72,140.62,10.5246]
[1718388980237,5.2602,140.68,140.63,23.6788]
[1718388980439,23.6699,140.69,140.64,7.8922]
[1718388980640,2.6302,140.67,140.63,7.8926]
[1718388980841,2.6307,140.65,140.61,8.7176025]
[1718388981141,2.6305,140.66,140.62,8.2334]
[1718388981445,0.17,140.71,140.62,0.34]
[1718388981632,13.1534,140.65,140.62,0.17]
[1718388981950,26.3067,140.65,140.62,0.17]
[1718388982116,35.69,140.73,140.62,0.17]
[1718388982117,7.891,140.67,140.62,24.1902]
[1718388982316,2.6303,140.67,140.63,2.6309]
[1718388982541,2.6303,140.67,140.63,7.8929]
[1718388982719,7.8905,140.68,140.64,2.6307]
[1718388982922,2.6302,140.67,140.63,7.8928]
[1718388983142,2.6302,140.67,140.64,0.51]
[1718388983317,7.8907,140.67,140.64,0.51]
[1718388984018,15.7815,140.67,140.64,0.51]
[1718388984218,2.6309,140.64,140.61,0.8236025]
[1718388984428,23.6765,140.65,140.61,0.8236025]
[1718388984699,2.6309,140.64,140.61,0.8236025]
[1718388984942,26.3072,140.65,140.61,3.4549025]
[1718388985160,15.7831,140.66,140.62,2.6311]
[1718388985447,2.6303,140.67,140.63,7.8927]
[1718388985623,7.37269792,140.68,140.63,23.6782]
[1718388985825,15.7817,140.67,140.62,26.9909]
[1718388986020,31.04379792,140.68,140.63,13.155]
[1718388986327,2.6303,140.67,140.63,15.7858]
[1718388986639,2.6303,140.67,140.63,7.8928]
[1718388986939,2.6303,140.67,140.63,15.7858]
[1718388987535,7.37269792,140.68,140.64,13.4939]
[1718388987718,23.6698,140.69,140.65,0.17]
[1718388987914,7.8899,140.69,140.65,3.1406]
[1718388988134,10.00193952,140.7,140.66,26.4735]
[1718388988318,23.15043952,140.7,140.67,0.17]
[1718388988529,7.37223952,140.7,140.68,2.63]
[1718388988847,7.8866,140.75,140.7,15.778]
[1718388989158,7.37237704,140.74,140.71,0.51]
[1718388989449,7.8885,140.71,140.68,0.17]
[1718388989697,2.6297,140.7,140.68,0.17]
[1718388989956,15.7774,140.71,140.68,0.34]
[1718388990171,26.3006,140.68,140.63,24.3957]
[1718388990324,2.6298,140.7,140.66,0.17]
[1718388990524,2.6297,140.7,140.66,8.231]
[1718388990755,13.1486,140.7,140.66,0.34]
[1718388990946,23.6675,140.7,140.66,0.34]
[1718388991131,7.8893,140.7,140.66,2.9704]
[1718388991326,15.7784,140.7,140.66,2.9704]
[1718388991526,100.0,140.72,140.66,0.17]
[1718388991727,2.6301,140.68,140.65,0.17]
[1718388991927,2.6306,140.65,140.63,21.7649]
[1718388992132,5.2612,140.65,140.63,21.7649]
[1718388992341,100.0,140.69,140.61,0.8236025]
[1718388992553,15.785,140.64,140.61,0.8236025]
[1718388992729,7.8925,140.64,140.61,0.8236025]
[1718388993056,7.8922,140.65,140.61,3.4549025]
[1718388993263,5.2618,140.64,140.61,0.8236025]
[1718388993473,26.312,140.62,140.61,0.8236025]
[1718388993760,7.8936,140.62,140.61,0.8236025]
[1718388994142,18.4177,140.63,140.61,0.8236025]
[1718388994339,2.6312,140.62,140.61,0.8236025]
[1718388994662,7.8934,140.63,140.61,0.8236025]
[1718388994860,100.0,140.7,140.61,0.8236025]
[1718388994861,2.6307,140.65,140.61,3.4549025]
[1718388995063,5.2609,140.66,140.61,24.5051025]
[1718388995266,21.0496,140.62,140.61,0.8236025]
[1718388995456,7.8936,140.62,140.61,0.8236025]
[1718388995944,26.312,140.62,140.61,0.8236025]
[1718388996144,2.6312,140.62,140.61,0.8236025]
[1718388996447,7.8936,140.62,140.61,0.8236025]
[1718388996965,26.312,140.62,140.61,0.8236025]
[1718388997176,26.3106,140.63,140.61,0.8236025]
[1718388997384,15.7852,140.64,140.61,0.8236025]
[1718388997590,26.312,140.62,140.61,0.8236025]
[1718388998797,23.6794,140.63,140.61,0.8236025]
[1718388998952,235.72,140.69,140.61,0.8236025]
[1718388999152,7.8925,140.64,140.61,0.8236025]
[1718388999382,235.72,140.69,140.61,0.8236025]
[1718388999383,26.312,140.62,140.61,0.8236025]
[1718389001513,2.6319,140.58,140.55,15.5727]
[1718389001681,13.1589,140.59,140.56,0.17]
[1718389002183,2.6316,140.6,140.56,2.8022]
[1718389002597,7.8948,140.6,140.56,8.0668]
[1718389002918,23.16332963,140.63,140.58,23.6871]
[1718389003076,10.00752963,140.63,140.59,3.1416]
[1718389003277,23.16262963,140.63,140.59,3.1416]
[1718389003481,7.37642963,140.63,140.6,7.8944]
[1718389003709,0.17,140.68,140.59,0.51]
[1718389004017,2.6314,140.61,140.59,0.51]
[1718389004180,5.2634,140.6,140.55,15.5727]
[1718389004385,26.3168,140.6,140.56,2.6323]
[1718389004614,26.3168,140.6,140.55,39.2651]
[1718389004615,23.6861,140.59,140.55,15.5727]
[1718389004789,2.632,140.58,140.55,15.5727]
[1718389004995,7.8966,140.57,140.55,15.5727]
[1718389005218,2.6322,140.57,140.55,15.5727]
[1718389005578,5.2641,140.58,140.55,15.5727]
[1718389005816,7.8961,140.58,140.55,15.5727]
[1718389006025,26.3184,140.59,140.55,15.5727]
[1718389006186,2.632,140.58,140.55,15.5727]
[1718389006680,7.8959,140.58,140.55,15.5727]
[1718389006876,18.4216,140.6,140.55,18.2051]
[1718389007082,7.8954,140.59,140.55,18.2051]
[1718389007340,2.6318,140.59,140.55,23.47]
[1718389007623,23.6862,140.59,140.55,15.5727]
[1718389007802,2.6321,140.57,140.55,15.5727]
[1718389008003,2.6325,140.55,140.51,21.6353]
[1718389008228,26.3261,140.55,140.51,24.2685]
[1718389008427,7.8982,140.54,140.51,21.6353]
[1718389008608,2.6326,140.55,140.51,24.2685]
[1718389008805,7.8976,140.55,140.51,24.2685]
[1718389009017,7.8982,140.54,140.51,21.6353]
[1718389009304,7.8949,140.6,140.51,21.6353]
[1718389009640,23.6847,140.6,140.55,23.6921]
[1718389009803,15.7895,140.6,140.56,2.6322]
[1718389010202,7.8947,140.6,140.56,2.6322]
[1718389010406,7.8947,140.6,140.57,0.51]
[1718389010704,6.3917,140.67,140.59,7.8949]
[1718389011037,6.3917,140.67,140.58,10.6971]
[1718389011038,7.8936,140.62,140.58,2.8018]
[1718389011225,5.2624,140.62,140.59,0.51]
[1718389011427,2.6313,140.62,140.58,15.9614]
[1718389011630,2.6312,140.62,140.59,0.51]
[1718389011830,18.422,140.6,140.54,0.17]
[1718389012139,2.6317,140.59,140.55,8.5771]
[1718389012431,23.6853,140.6,140.56,2.6323]
[1718389012432,26.317,140.6,140.56,2.6323]
[1718389012830,21.0517,140.61,140.57,0.17]
[1718389013134,2.6316,140.6,140.57,0.68]
[1718389013432,15.7896,140.6,140.57,0.17]
[1718389013724,2.6317,140.6,140.57,0.17]
[1718389014425,23.6814,140.62,140.58,0.17]
[1718389014632,7.8937,140.62,140.58,3.3118]
[1718389014804,23.68,140.63,140.58,24.3671]
[1718389015142,26.3111,140.63,140.59,2.6317]
[1718389015433,2.6312,140.62,140.58,26.9988]
[1718389015622,5.2628,140.61,140.58,0.68]
[1718389015810,100.0,140.56,140.47,0.8236025]
[1718389016005,26.3381,140.48,140.47,0.8236025]
[1718389017529,7.9009,140.49,140.47,0.8236025]
[1718389017826,15.8028,140.48,140.47,0.8236025]
[1718389018004,100.0,140.54,140.47,0.8236025]
[1718389018205,0.17,140.53,140.47,0.8236025]
[1718389018433,26.3381,140.48,140.47,0.8236025]
[1718389021233,33.71628587,140.48,140.47,0.8236025]
[1718389021606,15.27958587,140.48,140.47,0.8236025]
[1718389021807,7.37818587,140.48,140.47,0.9936025]
[1718389022003,7.37818587,140.48,140.47,0.8236025]
[1718389022004,13.169,140.48,140.47,0.8236025]
[1718389022314,2.6338,140.48,140.47,0.8236025]
[1718389022508,7.9014,140.48,140.47,0.8236025]
[1718389022732,23.703,140.49,140.47,0.8236025]
[1718389022935,2.6335,140.5,140.47,0.8236025]
[1718389023235,15.27808403,140.51,140.48,0.17]
[1718389023417,2.6334,140.5,140.48,0.17]
[1718389023623,7.37808403,140.51,140.48,0.17]
[1718389023827,15.27788403,140.51,140.48,0.17]
[1718389024118,15.27778403,140.51,140.48,0.51]
[1718389024310,7.37808403,140.51,140.49,0.17]
[1718389024512,100.0,140.55,140.48,0.34]
[1718389024736,2.6336,140.49,140.48,0.34]